fUST/lending_fUST_20240511
["ID","MTS","AMOUNT","RATE_DAILY","PERIOD"]
[326809812,1715403041299,-738.735474,0.00016731,2]
[326809813,1715403041309,-151.0,0.00016731,2]
[326809814,1715403041319,-151.0,0.00016731,2]
[326809815,1715403041327,-738.735474,0.00016731,2]
[326809816,1715403041337,-151.0,0.00016731,2]
[326809817,1715403041346,-151.0,0.00016731,2]
[326809818,1715403041355,-894.2497255,0.00016867,2]
[326809819,1715403041365,-226.657306,0.00016867,2]
[326809820,1715403041374,-226.657306,0.00016867,2]
[326809821,1715403041383,-258.856682,0.00016867,2]
[326809822,1715403041393,-258.856682,0.00016867,2]
[326809823,1715403041402,-151.0,0.00016867,2]
[326809824,1715403041411,-337.571508,0.00016867,2]
[326809825,1715403041421,-337.571508,0.00016867,2]
[326809826,1715403041430,-574.2167173,0.00017397,2]
[326809827,1715403041439,-151.0,0.00017397,2]
[326809828,1715403041449,-154.92271983,0.00017835,2]
[326809829,1715403041459,-154.92951562,0.00017948,2]
[326809830,1715403041469,-897.61888651,0.00018,2]
[326809831,1715403041479,-261.933438,0.00018,2]
[326809832,1715403041488,-261.933438,0.00018,2]
[326809833,1715403041499,-151.0,0.00018,2]
[326809835,1715403041513,-151.0,0.00018,2]
[326809837,1715403041525,-151.0,0.00018,2]
[326809839,1715403041536,-738.735474,0.00018,2]
[326809840,1715403041547,-151.0,0.00018,2]
[326809842,1715403041558,-738.735474,0.00018,2]
[326809843,1715403041569,-214.189464,0.00018,2]
[326809844,1715403041579,-226.657306,0.00018,2]
[326809845,1715403041589,-226.657306,0.00018,2]
[326809846,1715403041600,-258.856682,0.00018,2]
[326809847,1715403041609,-258.856682,0.00018,2]
[326809848,1715403041619,-255.345976,0.00018,2]
[326809849,1715403041628,-337.571508,0.00018,2]
[326809850,1715403041638,-337.571508,0.00018,2]
[326809851,1715403041648,-337.571508,0.00018,2]
[326809852,1715403041657,-337.571508,0.00018,2]
[326809853,1715403041666,-151.0,0.00018,2]
[326809854,1715403041676,-411.06133426,0.00018114,2]
[326809855,1715403041686,-226.657306,0.00018114,2]
[326809856,1715403041695,-226.657306,0.00018114,2]
[326809857,1715403041705,-258.856682,0.00018114,2]
[326809858,1715403041714,-258.856682,0.00018114,2]
[326809859,1715403041723,-151.0,0.00018114,2]
[326809860,1715403041733,-155.28880536,0.00018115,2]
[326809861,1715403041743,-574.2167173,0.00018198,2]
[326809862,1715403041753,-3057.36000381,0.00018896,2]
[326809863,1715403041762,-151.0,0.00018896,2]
[326809864,1715403041772,-261.933438,0.00018896,2]
[326809865,1715403041782,-261.933438,0.00018896,2]
[326809866,1715403041792,-151.0,0.00018896,2]
[326809867,1715403041802,-151.0,0.00018896,2]
[326809868,1715403041812,-151.0,0.00018896,2]
[326809869,1715403041821,-738.735474,0.00018896,2]
[326809870,1715403041831,-151.0,0.00018896,2]
[326809871,1715403041840,-738.735474,0.00018896,2]
[326809872,1715403041849,-226.657306,0.00018896,2]
[326809873,1715403041859,-226.657306,0.00018896,2]
[326809874,1715403041869,-226.657306,0.00018896,2]
[326809875,1715403041878,-226.657306,0.00018896,2]
[326809876,1715403041887,-258.856682,0.00018896,2]
[326809877,1715403041897,-258.856682,0.00018896,2]
[326809878,1715403041906,-258.856682,0.00018896,2]
[326809879,1715403041915,-258.856682,0.00018896,2]
[326809880,1715403041924,-337.571508,0.00018896,2]
[326809881,1715403041933,-337.571508,0.00018896,2]
[326809882,1715403041942,-337.571508,0.00018896,2]
[326809883,1715403041952,-337.571508,0.00018896,2]
[326809884,1715403042074,-151.0,0.00018896,2]
[326809885,1715403042085,-151.0,0.00018896,2]
[326809886,1715403042094,-244.17246828,0.000189,2]
[326809887,1715403042103,-349.73870107,0.00018905,2]
[326809888,1715403042113,-529.25675952,0.00018916,2]
[326809889,1715403042122,-261.933438,0.00018916,2]
[326809890,1715403042132,-261.933438,0.00018916,2]
[326809891,1715403042143,-151.0,0.00018916,2]
[326809892,1715403042155,-151.0,0.00018916,2]
[326809893,1715403042165,-151.0,0.00018916,2]
[326809894,1715403042175,-738.735474,0.00018916,2]
[326809895,1715403042186,-151.0,0.00018916,2]
[326809896,1715403042195,-738.735474,0.00018916,2]
[326809897,1715403042205,-226.657306,0.00018916,2]
[326809898,1715403042215,-226.657306,0.00018916,2]
[326809899,1715403042224,-226.657306,0.00018916,2]
[326809900,1715403042235,-226.657306,0.00018916,2]
[326809901,1715403042246,-258.856682,0.00018916,2]
[326809902,1715403042255,-258.856682,0.00018916,2]
[326809903,1715403042264,-258.856682,0.00018916,2]
[326809904,1715403042274,-258.856682,0.00018916,2]
[326809905,1715403042283,-337.571508,0.00018916,2]
[326809906,1715403042292,-337.571508,0.00018916,2]
[326809907,1715403042301,-337.571508,0.00018916,2]
[326809908,1715403042311,-337.571508,0.00018916,2]
[326809909,1715403042320,-151.0,0.00018916,2]
[326809910,1715403042329,-151.0,0.00018916,2]
[326809911,1715403042338,-574.2167173,0.00018999,2]
[326809912,1715403042347,-337.571508,0.00019178,2]
[326809913,1715403042356,-337.571508,0.00019178,2]
[326809914,1715403042365,-151.0,0.00019178,2]
[326809915,1715403042374,-179.319614,0.00019178,2]
[326809916,1715403042383,-166.3942399,0.00019178,2]
[326809917,1715403042392,-155.084409,0.00019178,2]
[326809918,1715403042401,-151.0,0.00019624,2]
[326809919,1715403042410,-151.0,0.00019624,2]
[326809920,1715403042420,-151.0,0.00019624,2]
[326809921,1715403042429,-738.735474,0.00019624,2]
[326809922,1715403042438,-151.0,0.00019624,2]
[326809923,1715403042448,-738.735474,0.00019624,2]
[326809924,1715403042458,-226.657306,0.00019624,2]
[326809925,1715403042467,-226.657306,0.00019624,2]
[326809926,1715403042477,-258.856682,0.00019624,2]
[326809927,1715403042486,-258.856682,0.00019624,2]
[326809928,1715403042495,-1000.0,0.00019721,2]
[326809929,1715403042503,-337.571508,0.00019721,2]
[326809930,1715403042513,-337.571515,0.00019721,2]
[326809931,1715403042522,-230.02990738,0.00019745,2]
[326809932,1715403042531,-151.0,0.00019746,2]
[326809933,1715403042540,-261.933438,0.00019746,2]
[326809934,1715403042550,-261.933438,0.00019746,2]
[326809935,1715403042559,-151.0,0.00019746,2]
[326809936,1715403042569,-151.0,0.00019746,2]
[326809937,1715403042578,-151.0,0.00019746,2]
[326809938,1715403042588,-738.735474,0.00019746,2]
[326809939,1715403042597,-151.0,0.00019746,2]
[326809940,1715403042607,-738.735474,0.00019746,2]
[326809941,1715403042616,-226.657306,0.00019746,2]
[326809942,1715403042625,-226.657296,0.00019746,2]
[326809943,1715403042634,-258.856682,0.00019746,2]
[326809944,1715403042643,-258.856686,0.00019746,2]
[326809945,1715403042652,-1000.0,0.00019754,2]
[326809946,1715403042662,-1000.0,0.00019762,2]
[326809947,1715403042671,-261.933438,0.00019764,2]
[326809948,1715403042680,-261.933438,0.00019764,2]
[326809949,1715403042689,-1000.0,0.00019764,2]
[326809950,1715403042699,-151.0,0.00019768,2]
[326809951,1715403042708,-151.0,0.00019768,2]
[326809952,1715403042718,-190.93895848,0.00019768,2]
[326809953,1715403042727,-151.0,0.00019768,2]
[326809954,1715403042736,-738.735474,0.00019768,2]
[326809955,1715403042745,-151.0,0.00019768,2]
[326809956,1715403042755,-738.735474,0.00019768,2]
[326809957,1715403042764,-258.825603,0.00019782,2]
[326809958,1715403042773,-151.0,0.00019782,2]
[326809959,1715403042782,-261.933438,0.00019782,2]
[326809960,1715403042791,-261.933438,0.00019782,2]
[326809961,1715403042800,-261.933438,0.00019782,2]
[326809962,1715403042809,-261.933438,0.00019782,2]
[326809963,1715403042818,-151.0,0.00019782,2]
[326809964,1715403042827,-151.0,0.00019782,2]
[326809965,1715403042837,-151.0,0.00019782,2]
[326809966,1715403042846,-151.0,0.00019782,2]
[326809967,1715403042854,-95.97665438,0.00019782,2]
[326809968,1715403042868,-642.75881962,0.00019782,2]
[326809969,1715403042877,-738.735474,0.00019782,2]
[326809970,1715403042886,-151.0,0.00019782,2]
[326809971,1715403042895,-194.259875,0.00019782,2]
[326809972,1715403042904,-738.735474,0.00019782,2]
[326809974,1715403042913,-738.735474,0.00019782,2]
[326809975,1715403042922,-1000.0,0.00019793,2]
[326809976,1715403042931,-574.2167173,0.000198,2]
[326809977,1715403042940,-44616.62725392,0.000198,2]
[326809978,1715403042952,-10215.00755645,0.000198,2]
[326809979,1715403042963,-723.36518963,0.000198,2]
[326809980,1715403042972,-151.0,0.0001982,2]
[326809981,1715403042982,-151.0,0.0001982,2]
[326809983,1715403042991,-151.0,0.0001982,2]
[326809984,1715403042999,-738.735474,0.0001982,2]
[326809985,1715403043009,-738.735472,0.0001982,2]
[326809986,1715403043018,-261.933438,0.00019827,2]
[326809987,1715403043027,-261.933438,0.00019827,2]
[326809988,1715403043035,-151.0,0.00019828,2]
[326809989,1715403043045,-261.933438,0.00019828,2]
[326809990,1715403043054,-261.933438,0.00019828,2]
[326809991,1715403043064,-151.0,0.0001984,2]
[326809993,1715403043073,-1000.0,0.0001984,2]
[326809996,1715403043083,-1000.0,0.00019844,2]
[326809998,1715403043092,-261.933438,0.00019856,2]
[326809999,1715403043101,-261.933448,0.00019856,2]
[326810001,1715403043111,-1000.0,0.00019858,2]
[326810002,1715403043121,-12815.67314294,0.00019865,2]
[326810003,1715403043130,-151.0,0.00019865,2]
[326810004,1715403043139,-151.0,0.00019865,2]
[326810005,1715403043150,-78.24184398,0.00019865,2]
[326810027,1715403228326,842.75,0.00010959,2]
[326810028,1715404005702,24900.0,0.00015781,2]
[326810029,1715404052195,159.90474983,0.00015901,2]
[326810030,1715404052225,15700.11036159,0.00016,2]
[326810031,1715404054980,773.75283072,0.00016,2]
[326810032,1715404070221,15700.11036159,0.00016,2]
[326810088,1715404238669,-9387.04651107,0.00016595,2]
[326810089,1715404238679,-6655.44454512,0.00016596,2]
[326810184,1715404243989,-9044.66581647,0.00016596,2]
[326810186,1715404243999,-59325.71232151,0.00016597,2]
[326810188,1715404244008,-4524.29606908,0.00016605,2]
[326810190,1715404244018,-231.448,0.00018492,2]
[326810192,1715404244028,-233.15913405,0.00018871,2]
[326810195,1715404244037,-162.78164552,0.000189,2]
[326810196,1715404244047,-500.0,0.00018996,7]
[326810198,1715404244056,-526.28,0.00018996,7]
[326810200,1715404244066,-179.319614,0.00019178,2]
[326810202,1715404244075,-1000.0,0.00019702,2]
[326810204,1715404244085,-320.55405057,0.00019725,2]
[326810206,1715404244095,-1000.0,0.00019766,2]
[326810209,1715404244104,-159.90474982,0.0001978,2]
[326810210,1715404244114,-1000.0,0.00019795,2]
[326810212,1715404244123,-1000.0,0.00019797,2]
[326810214,1715404244132,-798.38,0.0001985,3]
[326810216,1715404244142,-55555.0,0.0001986,2]
[326810218,1715404244151,-1000.0,0.00019868,2]
[326810220,1715404244161,-2593.72337385,0.00019897,2]
[326810222,1715404244170,-266.09168387,0.00019897,2]
[326810224,1715404244179,-1322.18002674,0.00019898,2]
[326810226,1715404244188,-364.32430512,0.00019898,2]
[326810430,1715405437977,-972.0795421,0.00018218,2]
[326810515,1715405446046,-206.99604976,0.00018218,2]
[326810516,1715405446055,-2256.08794858,0.00018312,2]
[326810545,1715406632094,-577.71680808,0.00016469,2]
[326810565,1715406638304,-1851.78392373,0.00016469,2]
[326810570,1715406640324,-570.49926819,0.00016469,2]
[326810571,1715406640333,-434.784647,0.00016482,2]
[326810572,1715406640381,-575.00185176,0.00016468,2]
[326810590,1715406643429,-1050.48085838,0.00016468,2]
[326810591,1715406643442,-835.19763302,0.00016468,2]
[326810613,1715407379035,1108.0,0.00016,2]
[326810643,1715407832490,-331.14189699,0.00016482,2]
[326810645,1715407832499,-9387.04651107,0.0001659,2]
[326810647,1715407832509,-24900.0,0.00016591,2]
[326810649,1715407832518,-1157.04804712,0.00016876,2]
[326810651,1715407832528,-2770.47252056,0.00016976,2]
[326810653,1715407832538,-1157.9324208,0.00018313,2]
[326810655,1715407832547,-10995.18032267,0.00018315,2]
[326810788,1715407947528,154.87609912,9.999e-05,2]
[326810789,1715407954845,154.87609912,9.999e-05,2]
[326810792,1715408348481,665.67444412,9.999e-05,2]
[326810799,1715408639920,412.8985133,9.999e-05,2]
[326810961,1715409197983,226.702787,0.00015102,2]
[326810962,1715409200345,871.90571754,0.00015982,2]
[326810963,1715409358093,24900.0,0.00015101,2]
[326810964,1715409372069,921.00094043,0.00015972,2]
[326810965,1715409384261,167.82791697,0.00015972,2]
[326810967,1715409606297,897.69675924,0.00015972,2]
[326810968,1715409668657,226.702787,0.00015101,2]
[326810969,1715409740590,1140.33476207,0.00015965,2]
[326810971,1715409877981,24900.0,0.00015069,2]
[326810972,1715409962021,997.79291682,0.00015951,2]
[326810973,1715410008418,718.1574074,0.00015953,2]
[326810976,1715410176488,7885.18103944,9.999e-05,2]
[326810977,1715410182156,873.0688022,0.00015942,2]
[326810994,1715410232087,-1883.13174552,0.00016037,2]
[326810996,1715410232100,-15700.11036159,0.00016037,2]
[326810999,1715410232113,-59325.71232151,0.00016038,2]
[326811001,1715410232124,-7900.60135011,0.00016038,2]
[326811003,1715410232136,-1679.73219039,0.00016039,2]
[326811005,1715410232147,-9387.04651107,0.00016039,2]
[326811008,1715410232159,-2462.93986855,0.00016047,2]
[326811010,1715410232173,-335.27500649,0.00016053,2]
[326811012,1715410232184,-154.95351395,0.00016064,2]
[326811014,1715410232195,-189.37113585,0.00016072,2]
[326811017,1715410232207,-719.14337588,0.00016076,2]
[326811019,1715410232219,-2601.22879423,0.00016078,2]
[326811021,1715410232230,-151.0,0.00016078,2]
[326811023,1715410232242,-151.0,0.00016078,2]
[326811025,1715410232254,-215.711212,0.00016078,2]
[326811028,1715410232265,-152.757917,0.00016078,2]
[326811030,1715410232276,-155.951997,0.00016078,2]
[326811032,1715410232287,-151.0,0.00016078,2]
[326811034,1715410232298,-151.0,0.00016078,2]
[326811037,1715410232309,-52421.46450478,0.00016079,2]
[326811039,1715410232321,-276.577114,0.00016079,2]
[326811041,1715410232332,-162.933685,0.00016079,2]
[326811043,1715410232344,-162.933685,0.00016079,2]
[326811046,1715410232355,-151.0,0.00016079,2]
[326811048,1715410232367,-161.195665,0.00016079,2]
[326811050,1715410232379,-151.0,0.00016079,2]
[326811052,1715410232389,-151.0,0.00016079,2]
[326811055,1715410232401,-156.716019,0.00016079,2]
[326811057,1715410232412,-151.0,0.00016079,2]
[326811059,1715410232423,-156.716019,0.00016079,2]
[326811061,1715410232434,-204.206292,0.00016079,2]
[326811063,1715410232445,-204.206292,0.00016079,2]
[326811065,1715410232456,-151.0,0.00016079,2]
[326811068,1715410232468,-151.0,0.00016079,2]
[326811070,1715410232479,-151.0,0.00016079,2]
[326811072,1715410232490,-151.0,0.00016079,2]
[326811073,1715410232501,-225.48211249,0.0001617,2]
[326811074,1715410232512,-151.0,0.0001617,2]
[326811075,1715410232523,-151.0,0.0001617,2]
[326811076,1715410232534,-1335.65028173,0.00016171,2]
[326811077,1715410232544,-151.0,0.00016171,2]
[326811078,1715410232555,-151.0,0.00016171,2]
[326811079,1715410232567,-265.037126,0.00016171,2]
[326811080,1715410232578,-156.716019,0.00016171,2]
[326811081,1715410232589,-151.0,0.00016171,2]
[326811082,1715410232600,-156.716019,0.00016171,2]
[326811083,1715410232611,-204.206292,0.00016171,2]
[326811084,1715410232622,-204.206292,0.00016171,2]
[326811085,1715410232632,-151.0,0.00016171,2]
[326811086,1715410232643,-151.0,0.00016171,2]
[326811087,1715410232654,-151.0,0.00016282,2]
[326811088,1715410232665,-718.15740736,0.00016938,2]
[326811089,1715410232677,-162.933685,0.00016952,2]
[326811090,1715410232689,-162.933685,0.00016952,2]
[326811091,1715410232699,-151.0,0.00017122,2]
[326811092,1715410232710,-151.0,0.00017122,2]
[326811093,1715410232720,-151.0,0.00017122,2]
[326811094,1715410232731,-156.716019,0.00017122,2]
[326811095,1715410232742,-151.0,0.00017122,2]
[326811096,1715410232753,-156.716019,0.00017122,2]
[326811097,1715410232763,-204.206292,0.00017122,2]
[326811098,1715410232774,-204.206292,0.00017122,2]
[326811099,1715410232785,-151.0,0.00017122,2]
[326811100,1715410232795,-286.711992,0.00017122,2]
[326811101,1715410232806,-151.0,0.00017122,2]
[326811102,1715410232817,-766.76989514,0.00017122,2]
[326811103,1715410232828,-413.22814218,0.00017127,2]
[326811104,1715410232839,-246.29770004,0.00017399,2]
[326811105,1715410232850,-162.933685,0.00017921,2]
[326811106,1715410232860,-162.933685,0.00017921,2]
[326811107,1715410232871,-718.15740736,0.00017923,2]
[326811108,1715410232882,-156.716019,0.00017923,2]
[326811109,1715410232893,-194.592302,0.00017923,2]
[326811110,1715410232904,-156.716019,0.00017923,2]
[326811111,1715410232915,-204.206292,0.00017923,2]
[326811112,1715410232927,-204.206292,0.00017923,2]
[326811113,1715410232937,-151.0,0.00017923,2]
[326811114,1715410232948,-151.0,0.00017933,2]
[326811115,1715410232958,-183.456687,0.00017933,2]
[326811116,1715410232967,-151.0,0.00017933,2]
[326811117,1715410232977,-162.933685,0.00018313,2]
[326811118,1715410232986,-162.933685,0.00018313,2]
[326811119,1715410232997,-162.933685,0.00018313,2]
[326811120,1715410233006,-162.933685,0.00018313,2]
[326811121,1715410233016,-162.933685,0.00018313,2]
[326811122,1715410233025,-162.933685,0.00018313,2]
[326811123,1715410233271,-162.933685,0.00018313,2]
[326811124,1715410233293,-162.933685,0.00018313,2]
[326811125,1715410233302,-151.0,0.00018313,2]
[326811126,1715410233311,-153.48618596,0.00018313,2]
[326811127,1715410233321,-156.716019,0.00018313,2]
[326811128,1715410233330,-156.716019,0.00018313,2]
[326811129,1715410233339,-156.716019,0.00018313,2]
[326811130,1715410233348,-156.716019,0.00018313,2]
[326811131,1715410233357,-156.716019,0.00018313,2]
[326811132,1715410233367,-156.716019,0.00018313,2]
[326811133,1715410233376,-204.206292,0.00018313,2]
[326811134,1715410233385,-204.206292,0.00018313,2]
[326811135,1715410233395,-204.206292,0.00018313,2]
[326811136,1715410233405,-204.206292,0.00018313,2]
[326811137,1715410233414,-204.206292,0.00018313,2]
[326811138,1715410233424,-204.206292,0.00018313,2]
[326811139,1715410233433,-151.0,0.00018313,2]
[326811140,1715410233442,-151.0,0.00018313,2]
[326811141,1715410233451,-151.0,0.00018313,2]
[326811142,1715410233460,-242.809515,0.00018313,2]
[326811143,1715410233469,-1506.0149933,0.00018313,2]
[326811144,1715410233479,-185.39269354,0.00018313,2]
[326811145,1715410233488,-294.51792014,0.00018313,2]
[326811146,1715410233497,-155.13833651,0.00018313,2]
[326811147,1715410233507,-409.82935884,0.00018313,2]
[326811148,1715410233516,-433.93383374,0.00018313,2]
[326811149,1715410233526,-186.63147511,0.00018314,2]
[326811150,1715410233535,-150.0,0.00018536,2]
[326811151,1715410233545,-150.0,0.00018536,2]
[326811152,1715410233554,-156.716019,0.00018536,2]
[326811153,1715410233563,-156.716019,0.00018536,2]
[326811154,1715410233572,-204.206292,0.00018536,2]
[326811155,1715410233582,-204.206292,0.00018536,2]
[326811156,1715410233592,-162.933685,0.000187,2]
[326811157,1715410233601,-162.933685,0.000187,2]
[326811158,1715410233610,-886.0,0.000187,2]
[326811159,1715410233620,-151.0,0.000187,2]
[326811160,1715410233629,-299.46881313,0.000189,2]
[326811161,1715410233638,-718.15740736,0.00018908,2]
[326811162,1715410233647,-156.716019,0.00018908,2]
[326811163,1715410233656,-156.716019,0.00018908,2]
[326811164,1715410233666,-204.206292,0.00018908,2]
[326811165,1715410233677,-204.206292,0.00018908,2]
[326811166,1715410233686,-509.79807509,0.00019178,2]
[326811167,1715410233696,-500.0,0.00019178,2]
[326811168,1715410233705,-500.0,0.00019178,2]
[326811169,1715410233714,-535.001847,0.00019178,2]
[326811170,1715410233724,-500.0,0.00019178,2]
[326811171,1715410233733,-500.0,0.00019178,2]
[326811172,1715410233744,-500.0,0.00019178,2]
[326811173,1715410233753,-500.0,0.00019178,2]
[326811174,1715410233763,-500.0,0.00019178,2]
[326811175,1715410233773,-162.933685,0.00019178,2]
[326811176,1715410233782,-162.933685,0.00019178,2]
[326811177,1715410233792,-162.933685,0.00019178,2]
[326811178,1715410233802,-162.933685,0.00019178,2]
[326811179,1715410233812,-156.716019,0.00019178,2]
[326811180,1715410233821,-156.716017,0.00019178,2]
[326811181,1715410233831,-204.206292,0.00019178,2]
[326811182,1715410233840,-204.206285,0.00019178,2]
[326811183,1715410233849,-179.541506,0.00019178,2]
[326811184,1715410233859,-1000.0,0.000198,2]
[326811185,1715410233868,-55555.0,0.0001986,2]
[326811186,1715410233877,-718.15740736,0.00019893,2]
[326811187,1715410233886,-65.70391962,0.00019898,2]
[326811188,1715410233896,-163.97263572,0.00019898,2]
[326811189,1715410233905,-263.9837175,0.00019899,2]
[326811190,1715410233914,-2000.0,0.000199,2]
[326811191,1715410233923,-219.70516785,0.00019958,2]
[326811192,1715410233938,-18059.65252446,0.0001996,2]
[326811304,1715410246219,-539.22978156,0.00019959,2]
[326811306,1715410246342,-1343.90196396,0.00019959,2]
[326811307,1715410246351,-5983.49237968,0.00019959,2]
[326811315,1715410435656,201.42988528,0.00015938,2]
[326811316,1715410606173,-9387.04651107,0.00017867,2]
[326811317,1715410606194,-9598.15348893,0.00017867,2]
[326811318,1715410709788,-2675.4108665,0.00017769,2]
[326811319,1715410709808,-9387.04651107,0.0001777,2]
[326811320,1715410709829,-15700.11036159,0.00017771,2]
[326811321,1715410709850,-763.93520196,0.00017773,2]
[326811322,1715410709870,-15499.79705888,0.00017864,2]
[326811324,1715410911913,154.84515485,9.999e-05,2]
[326811325,1715411418959,154.84515485,9.999e-05,2]
[326811357,1715411432247,-275.279331,0.00016844,2]
[326811358,1715411432257,-167.82791697,0.00016848,2]
[326811359,1715411432266,-191.40557245,0.00017753,2]
[326811360,1715411432275,-46384.68032032,0.00017843,2]
[326811414,1715411440643,-156.03413692,0.00017842,2]
[326811415,1715411440652,-12941.03200119,0.00017843,2]
[326811416,1715411440662,-200.0,0.00017843,2]
[326811417,1715411440671,-5867.93322723,0.00017844,2]
[326811447,1715411544374,1681.52731144,0.00015,2]
[326811448,1715412295611,250.0,0.00015604,2]
[326811449,1715412377318,15700.11036159,9.999e-05,2]
[326811466,1715412472573,231.772704,0.00015563,2]
[326811467,1715412580323,24900.0,0.0001571,2]
[326811468,1715412601873,929.9125183,0.00015656,2]
[326811479,1715412632530,-847.92608187,0.00016391,2]
[326811481,1715412632539,-503.17906697,0.00016479,2]
[326811485,1715412632694,-453.74770734,0.00016479,2]
[326811486,1715412632706,-10898.1666634,0.00016479,2]
[326811487,1715412632718,-47470.6188838,0.00016479,2]
[326811488,1715412632728,-9387.04651107,0.0001648,2]
[326811489,1715412632737,-1895.18893597,0.00016481,2]
[326811490,1715412632747,-191.40557243,0.00016491,2]
[326811491,1715412632755,-413.14065694,0.00016588,2]
[326811492,1715412632764,-204.94636995,0.00016591,2]
[326811493,1715412632773,-331.14189699,0.00016595,2]
[326811494,1715412632782,-2770.47252056,0.00017624,2]
[326811495,1715412632791,-1157.9324208,0.00017625,2]
[326811496,1715412632801,-7884.1916548,0.00017632,2]
[326811497,1715412632810,-4394.26160288,0.00017843,2]
[326811498,1715412632819,-162.71094643,0.00017845,2]
[326811499,1715412632830,-163.71452413,0.00017847,2]
[326811500,1715412632839,-704.7211179,0.00017849,2]
[326811501,1715412632848,-171.10179152,0.00017853,2]
[326811502,1715412632857,-301.59845587,0.00017853,2]
[326811503,1715412632866,-1026.35919841,0.00017855,2]
[326811504,1715412632875,-251.81857805,0.00017859,2]
[326811505,1715412632886,-266.79165539,0.00017863,2]
[326811506,1715412632895,-2675.4108665,0.00017863,2]
[326811507,1715412632905,-150.0,0.00018375,2]
[326811508,1715412632914,-199.64587542,0.000189,2]
[326811509,1715412632924,-197.03816003,0.00018961,2]
[326811510,1715412632934,-179.541506,0.00019178,2]
[326811511,1715412632944,-154.98468963,0.00019857,2]
[326811512,1715412632954,-586.45376875,0.00019857,2]
[326811513,1715412632963,-273.52788847,0.00019857,2]
[326811514,1715412632972,-277.44284843,0.00019857,2]
[326811515,1715412632981,-281.59685807,0.00019857,2]
[326811516,1715412632991,-155.78707021,0.00019858,2]
[326811517,1715412632999,-43624.84958152,0.0001986,2]
[326811518,1715412633009,-191.40557243,0.00019893,2]
[326811519,1715412633018,-1689.54174305,0.00019897,2]
[326811520,1715412633027,-286.21324352,0.00019897,2]
[326811521,1715412633036,-200.64863062,0.00019898,2]
[326811522,1715412633045,-1904.80850412,0.000199,2]
[326811523,1715412633055,-1882.53987858,0.00019957,2]
[326811524,1715412633063,-5436.24020088,0.0001996,2]
[326811567,1715412643838,-500.0,0.00019959,2]
[326811568,1715412643847,-560.5005541,0.00019959,2]
[326811569,1715412643856,-1984.4994459,0.0001996,2]
[326811637,1715412793413,522.32384593,9.999e-05,2]
[326812522,1715414263653,204.17481667,0.00011185,2]
[326812523,1715414264549,204.17481667,0.0001149,2]
[326812524,1715414264931,204.17481667,0.00011694,2]
[326812525,1715414265316,204.17481667,0.00011862,2]
[326812526,1715414265640,204.17481667,0.00012212,2]
[326812527,1715414265977,204.17481667,0.00012503,2]
[326812528,1715414266354,204.17481667,0.00012676,2]
[326812529,1715414266698,204.17481667,0.00013038,2]
[326812530,1715414267070,204.17481667,0.00013198,2]
[326812531,1715414267423,204.17481667,0.00013479,2]
[326812532,1715414267774,204.17481667,0.00013853,2]
[326812533,1715414268099,204.17481667,0.00014201,2]
[326812534,1715414268473,204.17481667,0.00014298,2]
[326812535,1715414268853,204.17481667,0.00014542,2]
[326812536,1715414269758,204.17481667,0.00014892,2]
[326812537,1715414270094,204.17481667,0.00015207,2]
[326812538,1715414270429,204.17481667,0.00015391,2]
[326812539,1715414270762,30.79947381,0.0001569,2]
[326812542,1715414397684,203.21233311,0.00013816,2]
[326812543,1715414398030,203.21233311,0.00014211,2]
[326812544,1715414398371,203.21233311,0.00014389,2]
[326812545,1715414399987,203.21233311,0.00014669,2]
[326812548,1715414472805,19312.08397037,0.00014669,2]